[Event "Early-Titled-Tuesday-Blitz-September-26-2023"]
[Site "Chess.com"]
[Date "2023.09.26"]
[Round "6"]
[White "MidnightFox"]
[Black "SRob2003"]
[Result "1-0"]
[WhiteElo "2441"]
[BlackElo "2615"]
[TimeControl "180+1"]
[EndTime "9:10:09 PDT"]
[Termination "MidnightFox won on time"]

1. d4 {[%clk 0:03:00.9]} 1... Nf6 {[%clk 0:02:59.8]} 2. c4 {[%clk 0:03:00.3]}
2... e6 {[%clk 0:03:00]} 3. g3 {[%clk 0:03:00.4]} 3... d5 {[%clk 0:03:00]} 4.
Bg2 {[%clk 0:03:00.4]} 4... Bb4+ {[%clk 0:02:59.8]} 5. Nd2 {[%clk 0:02:59.6]}
5... O-O {[%clk 0:02:58.2]} 6. Qc2 {[%clk 0:02:58.8]} 6... b6 {[%clk 0:02:55.6]}
7. Nf3 {[%clk 0:02:56.2]} 7... Ba6 {[%clk 0:02:40]} 8. O-O {[%clk 0:02:54]} 8...
c6 {[%clk 0:02:25.2]} 9. b3 {[%clk 0:02:50]} 9... Nbd7 {[%clk 0:02:19.3]} 10. e4
{[%clk 0:02:49.1]} 10... Bxd2 {[%clk 0:02:09.1]} 11. Nxd2 {[%clk 0:02:48]} 11...
dxc4 {[%clk 0:02:08.7]} 12. bxc4 {[%clk 0:02:43.5]} 12... e5 {[%clk 0:02:03.2]}
13. Bb2 {[%clk 0:02:29.7]} 13... exd4 {[%clk 0:01:58.9]} 14. Bxd4 {[%clk
0:02:30.6]} 14... Re8 {[%clk 0:01:48.3]} 15. Rad1 {[%clk 0:02:22.1]} 15... Qc7
{[%clk 0:01:43]} 16. h3 {[%clk 0:02:12.2]} 16... Rad8 {[%clk 0:01:15.8]} 17. f4
{[%clk 0:02:06.3]} 17... Nh5 {[%clk 0:01:10.7]} 18. Bf2 {[%clk 0:02:00.6]} 18...
g6 {[%clk 0:01:08.4]} 19. e5 {[%clk 0:01:51.2]} 19... Nc5 {[%clk 0:01:05.5]} 20.
Bxc5 {[%clk 0:01:40.9]} 20... bxc5 {[%clk 0:01:06.4]} 21. Ne4 {[%clk 0:01:41.1]}
21... Kh8 {[%clk 0:00:20.5]} 22. g4 {[%clk 0:01:36.7]} 22... Ng7 {[%clk
0:00:19.4]} 23. Nd6 {[%clk 0:01:14.2]} 23... Re7 {[%clk 0:00:18.6]} 24. f5
{[%clk 0:00:46.5]} 24... Red7 {[%clk 0:00:11.2]} 25. fxg6 {[%clk 0:00:35.9]}
25... fxg6 {[%clk 0:00:12.1]} 26. Nf7+ {[%clk 0:00:28.2]} 26... Rxf7 {[%clk
0:00:12.7]} 27. Rxd8+ {[%clk 0:00:27.7]} 27... Qxd8 {[%clk 0:00:13]} 28. Rxf7
{[%clk 0:00:28.4]} 28... Qd4+ {[%clk 0:00:11.2]} 29. Qf2 {[%clk 0:00:26.1]}
29... Bxc4 {[%clk 0:00:11.8]} 30. Qxd4 {[%clk 0:00:19.1]} 30... cxd4 {[%clk
0:00:12.7]} 31. Rf8+ {[%clk 0:00:19.6]} 31... Bg8 {[%clk 0:00:12.8]} 32. Bxc6
{[%clk 0:00:18.8]} 32... Ne6 {[%clk 0:00:11.3]} 33. Ra8 {[%clk 0:00:14.8]} 33...
Nf4 {[%clk 0:00:11.8]} 34. Rxa7 {[%clk 0:00:12.2]} 34... d3 {[%clk 0:00:10.9]}
35. Rd7 {[%clk 0:00:12.5]} 35... Bxa2 {[%clk 0:00:06.9]} 36. Kf2 {[%clk
0:00:12.4]} 36... g5 {[%clk 0:00:06.4]} 37. Ke3 {[%clk 0:00:11.9]} 37... h5
{[%clk 0:00:05.4]} 38. gxh5 {[%clk 0:00:11.8]} 38... Nxh5 {[%clk 0:00:05]} 39.
Kxd3 {[%clk 0:00:11.2]} 39... Nf4+ {[%clk 0:00:03.8]} 40. Ke4 {[%clk 0:00:11.1]}
40... Be6 {[%clk 0:00:03.9]} 41. Re7 {[%clk 0:00:10.4]} 41... Bxh3 {[%clk
0:00:03.7]} 42. Bb5 {[%clk 0:00:08.7]} 42... Kg8 {[%clk 0:00:04]} 43. Bc4+
{[%clk 0:00:08.6]} 43... Kf8 {[%clk 0:00:04.7]} 44. Ra7 {[%clk 0:00:08.6]} 44...
Ke8 {[%clk 0:00:01.9]} 45. Bb3 {[%clk 0:00:05.4]} 45... Kf8 {[%clk 0:00:02.2]}
46. Ra8+ {[%clk 0:00:04.3]} 46... Ke7 {[%clk 0:00:02.3]} 47. Ra6 {[%clk
0:00:04.7]} 47... Kf8 {[%clk 0:00:02.5]} 48. Rb6 {[%clk 0:00:05.1]} 48... Kg7
{[%clk 0:00:03]} 49. Kf3 {[%clk 0:00:05.4]} 49... Bf5 {[%clk 0:00:02.8]} 50. Ra6
{[%clk 0:00:02.4]} 50... Bd3 {[%clk 0:00:02.1]} 51. Ra7+ {[%clk 0:00:01.3]}
51... Kg6 {[%clk 0:00:02.8]} 52. Kg4 {[%clk 0:00:02.2]} 52... Be2+ {[%clk
0:00:02.7]} 53. Kg3 {[%clk 0:00:01.3]} 53... Kh5 {[%clk 0:00:03.6]} 54. Rb7
{[%clk 0:00:01.7]} 54... Kg6 {[%clk 0:00:04.4]} 55. Rb6+ {[%clk 0:00:02.6]}
55... Kf5 {[%clk 0:00:04.7]} 56. Bc2+ {[%clk 0:00:03.5]} 56... Kxe5 {[%clk
0:00:04.7]} 57. Rb8 {[%clk 0:00:04.4]} 57... Bc4 {[%clk 0:00:04.2]} 58. Re8+
{[%clk 0:00:04.9]} 58... Kf6 {[%clk 0:00:04.7]} 59. Rc8 {[%clk 0:00:04.8]} 59...
Be6 {[%clk 0:00:04.6]} 60. Rc6 {[%clk 0:00:04.8]} 60... Ke5 {[%clk 0:00:04.3]}
61. Ra6 {[%clk 0:00:04.5]} 61... Ne2+ {[%clk 0:00:04.7]} 62. Kf2 {[%clk
0:00:03.9]} 62... Nd4 {[%clk 0:00:05.3]} 63. Ra5+ {[%clk 0:00:04.1]} 63... Kf4
{[%clk 0:00:04.6]} 64. Bh7 {[%clk 0:00:05]} 64... g4 {[%clk 0:00:03.4]} 65. Ra4
{[%clk 0:00:04.5]} 65... Ke5 {[%clk 0:00:01.9]} 66. Kg3 {[%clk 0:00:03.6]} 66...
Bd7 {[%clk 0:00:02.1]} 67. Rb4 {[%clk 0:00:03.3]} 67... Ne2+ {[%clk 0:00:02]}
68. Kf2 {[%clk 0:00:03]} 68... Nf4 {[%clk 0:00:02.6]} 69. Kg3 {[%clk 0:00:02.3]}
69... Nh5+ {[%clk 0:00:02.7]} 70. Kh4 {[%clk 0:00:02.6]} 70... Nf6 {[%clk
0:00:03.6]} 71. Kg5 {[%clk 0:00:02.8]} 71... Nxh7+ {[%clk 0:00:03.8]} 72. Kh6
{[%clk 0:00:01.8]} 72... Nf6 {[%clk 0:00:04.5]} 73. Kg6 {[%clk 0:00:01.9]} 73...
g3 {[%clk 0:00:04]} 74. Rb1 {[%clk 0:00:01.8]} 1-0

[Event "Early-Titled-Tuesday-Blitz-September-26-2023"]
[Site "Chess.com"]
[Date "2023.09.26"]
[Round "6"]
[White "Krakozia"]
[Black "rezamahdavi2008"]
[Result "1-0"]
[WhiteElo "3041"]
[BlackElo "2877"]
[TimeControl "180+1"]
[EndTime "9:10:15 PDT"]
[Termination "Krakozia won by resignation"]

1. Nf3 {[%clk 0:02:56.4]} 1... g6 {[%clk 0:02:52.8]} 2. d4 {[%clk 0:02:55.6]}
2... Nf6 {[%clk 0:02:51.9]} 3. Bf4 {[%clk 0:02:55.8]} 3... Bg7 {[%clk
0:02:51.8]} 4. Nbd2 {[%clk 0:02:56]} 4... O-O {[%clk 0:02:50.5]} 5. e4 {[%clk
0:02:56.5]} 5... d6 {[%clk 0:02:49.4]} 6. c3 {[%clk 0:02:56]} 6... c5 {[%clk
0:02:49.3]} 7. dxc5 {[%clk 0:02:55.1]} 7... dxc5 {[%clk 0:02:47.9]} 8. Bc4
{[%clk 0:02:55.5]} 8... Nh5 {[%clk 0:02:47]} 9. Be3 {[%clk 0:02:53.7]} 9... Qc7
{[%clk 0:02:45.3]} 10. O-O {[%clk 0:02:51]} 10... b6 {[%clk 0:02:40.4]} 11. Re1
{[%clk 0:02:25.6]} 11... Nc6 {[%clk 0:02:24.1]} 12. a4 {[%clk 0:02:25.2]} 12...
Nf4 {[%clk 0:02:19.8]} 13. g3 {[%clk 0:02:23.2]} 13... e5 {[%clk 0:02:08]} 14.
Qc2 {[%clk 0:02:01.4]} 14... Bg4 {[%clk 0:02:02.8]} 15. Nh4 {[%clk 0:01:57.8]}
15... Rad8 {[%clk 0:02:00]} 16. f3 {[%clk 0:01:55.2]} 16... Nh3+ {[%clk
0:01:58.2]} 17. Kg2 {[%clk 0:01:53]} 17... Bc8 {[%clk 0:01:59.1]} 18. Rad1
{[%clk 0:01:52.6]} 18... Qe7 {[%clk 0:01:56.7]} 19. Bd5 {[%clk 0:01:51.1]} 19...
Na5 {[%clk 0:01:51.4]} 20. Nb3 {[%clk 0:01:21.7]} 20... Nxb3 {[%clk 0:01:37.5]}
21. Qxb3 {[%clk 0:01:21.9]} 21... Nf4+ {[%clk 0:01:36.9]} 22. Bxf4 {[%clk
0:00:59]} 22... exf4 {[%clk 0:01:35.8]} 23. a5 {[%clk 0:00:57.8]} 23... bxa5
{[%clk 0:01:28.3]} 24. Kf2 {[%clk 0:00:50.3]} 24... Rd6 {[%clk 0:01:26.3]} 25.
Ng2 {[%clk 0:00:49.4]} 25... fxg3+ {[%clk 0:01:26.2]} 26. hxg3 {[%clk
0:00:50.3]} 26... Rb6 {[%clk 0:01:26.9]} 27. Qa3 {[%clk 0:00:48.5]} 27... Be6
{[%clk 0:01:21.9]} 28. Ne3 {[%clk 0:00:47.5]} 28... Rfb8 {[%clk 0:01:11.3]} 29.
Re2 {[%clk 0:00:47.3]} 29... h5 {[%clk 0:01:05.1]} 30. Nc4 {[%clk 0:00:37.3]}
30... Rb3 {[%clk 0:01:03.3]} 31. Qa4 {[%clk 0:00:36]} 31... h4 {[%clk
0:00:59.6]} 32. Rg1 {[%clk 0:00:31.1]} 32... hxg3+ {[%clk 0:00:59.3]} 33. Rxg3
{[%clk 0:00:32]} 33... Qh4 {[%clk 0:00:59]} 34. Bxe6 {[%clk 0:00:29.2]} 34...
fxe6 {[%clk 0:00:56.9]} 35. Qd7 {[%clk 0:00:25]} 35... Qf6 {[%clk 0:00:53.5]}
36. Rd2 {[%clk 0:00:21.1]} 36... R3b7 {[%clk 0:00:51]} 37. Qc6 {[%clk
0:00:20.2]} 37... Rf7 {[%clk 0:00:47.2]} 38. Kg2 {[%clk 0:00:19.7]} 38... Bh6
{[%clk 0:00:46.2]} 39. Rd6 {[%clk 0:00:16]} 39... Re7 {[%clk 0:00:45.4]} 40. Rd7
{[%clk 0:00:14.3]} 40... Rbe8 {[%clk 0:00:35.7]} 41. Nd6 {[%clk 0:00:12.9]}
41... Rf8 {[%clk 0:00:29.9]} 42. e5 {[%clk 0:00:12.4]} 42... Qg7 {[%clk
0:00:24.1]} 43. Rxe7 {[%clk 0:00:12.3]} 43... Qxe7 {[%clk 0:00:25]} 44. Qe4
{[%clk 0:00:12.7]} 44... g5 {[%clk 0:00:18.7]} 45. Qg6+ {[%clk 0:00:13]} 45...
Bg7 {[%clk 0:00:17.1]} 46. Rxg5 {[%clk 0:00:12.2]} 46... Rb8 {[%clk 0:00:16.8]}
47. Ne4 {[%clk 0:00:10.5]} 47... Rxb2+ {[%clk 0:00:13.8]} 48. Kh3 {[%clk
0:00:11.1]} 48... Qf7 {[%clk 0:00:13.3]} 49. Nf6+ {[%clk 0:00:09.8]} 49... Kf8
{[%clk 0:00:13.7]} 50. Nh7+ {[%clk 0:00:10]} 50... Kg8 {[%clk 0:00:13]} 51. Nf6+
{[%clk 0:00:10.1]} 51... Kf8 {[%clk 0:00:13.6]} 52. Nh7+ {[%clk 0:00:07.5]}
52... Kg8 {[%clk 0:00:08.9]} 53. Qd3 {[%clk 0:00:07.7]} 53... Rb8 {[%clk
0:00:03.3]} 54. Nf6+ {[%clk 0:00:07.9]} 54... Kf8 {[%clk 0:00:03.4]} 55. Qd6+
{[%clk 0:00:08.2]} 55... Qe7 {[%clk 0:00:02.4]} 56. Qxb8+ {[%clk 0:00:08.4]}
56... Kf7 {[%clk 0:00:03.3]} 57. Rxg7+ {[%clk 0:00:08.9]} 57... Kxg7 {[%clk
0:00:03.7]} 58. Qg8+ {[%clk 0:00:09.8]} 58... Kh6 {[%clk 0:00:04.2]} 59. Ng4+
{[%clk 0:00:10.1]} 59... Kh5 {[%clk 0:00:04.3]} 60. Nf6+ {[%clk 0:00:10.6]}
60... Kh6 {[%clk 0:00:04.8]} 61. Qh8+ {[%clk 0:00:10.9]} 61... Kg5 {[%clk
0:00:03.5]} 62. Kg3 {[%clk 0:00:11.1]} 62... Qf7 {[%clk 0:00:02.2]} 63. Qh4+
{[%clk 0:00:10.9]} 63... Kf5 {[%clk 0:00:02.9]} 64. Qf4+ {[%clk 0:00:11]} 64...
Kg6 {[%clk 0:00:03.5]} 65. Qg4+ {[%clk 0:00:11.4]} 65... Kh6 {[%clk 0:00:04]}
66. Qh4+ {[%clk 0:00:11.7]} 66... Kg7 {[%clk 0:00:04.1]} 67. Qh7+ {[%clk
0:00:11.6]} 67... Kf8 {[%clk 0:00:04.9]} 68. Qh8+ {[%clk 0:00:11.8]} 68... Ke7
{[%clk 0:00:05.2]} 69. Kf4 {[%clk 0:00:12.1]} 69... Qf8 {[%clk 0:00:04.5]} 70.
Qh7+ {[%clk 0:00:12.2]} 70... Qf7 {[%clk 0:00:05.1]} 71. Qh8 {[%clk 0:00:12.5]}
71... Qf8 {[%clk 0:00:05.7]} 72. Qxf8+ {[%clk 0:00:12]} 72... Kxf8 {[%clk
0:00:06.6]} 73. Nd7+ {[%clk 0:00:12.9]} 73... Ke7 {[%clk 0:00:05.7]} 74. Nxc5
{[%clk 0:00:13.8]} 74... Kd8 {[%clk 0:00:06.4]} 75. Ke4 {[%clk 0:00:13.9]} 75...
Kc7 {[%clk 0:00:06.9]} 76. Nxe6+ {[%clk 0:00:14.1]} 76... Kb6 {[%clk 0:00:07.5]}
77. Nd4 {[%clk 0:00:14.9]} 77... a4 {[%clk 0:00:05.3]} 78. Nc2 {[%clk
0:00:15.8]} 1-0

[Event "Early-Titled-Tuesday-Blitz-September-26-2023"]
[Site "Chess.com"]
[Date "2023.09.26"]
[Round "6"]
[White "blitzo_vich"]
[Black "Zohid6"]
[Result "0-1"]
[WhiteElo "2633"]
[BlackElo "2784"]
[TimeControl "180+1"]
[EndTime "9:10:43 PDT"]
[Termination "Zohid6 won by resignation"]

1. Nf3 {[%clk 0:03:00.9]} 1... d5 {[%clk 0:02:55.4]} 2. e3 {[%clk 0:03:00.3]}
2... Nf6 {[%clk 0:02:55.1]} 3. c4 {[%clk 0:03:00]} 3... e6 {[%clk 0:02:53.9]} 4.
b3 {[%clk 0:02:58]} 4... Be7 {[%clk 0:02:53.2]} 5. Bb2 {[%clk 0:02:58.2]} 5...
O-O {[%clk 0:02:53.5]} 6. Be2 {[%clk 0:02:58.7]} 6... c5 {[%clk 0:02:52.7]} 7.
O-O {[%clk 0:02:56]} 7... Nc6 {[%clk 0:02:52.6]} 8. cxd5 {[%clk 0:02:56.4]} 8...
exd5 {[%clk 0:02:53.5]} 9. d4 {[%clk 0:02:56.2]} 9... Ne4 {[%clk 0:02:52.7]} 10.
Nbd2 {[%clk 0:02:53.9]} 10... cxd4 {[%clk 0:02:49.6]} 11. Nxd4 {[%clk
0:02:52.2]} 11... Bf6 {[%clk 0:02:48.5]} 12. Nxe4 {[%clk 0:02:49.1]} 12... dxe4
{[%clk 0:02:48.4]} 13. Nxc6 {[%clk 0:02:48.6]} 13... Qxd1 {[%clk 0:02:47]} 14.
Raxd1 {[%clk 0:02:45.3]} 14... Bxb2 {[%clk 0:02:47.1]} 15. Ne7+ {[%clk 0:02:43]}
15... Kh8 {[%clk 0:02:47.1]} 16. Nxc8 {[%clk 0:02:43.2]} 16... Raxc8 {[%clk
0:02:48]} 17. Rd7 {[%clk 0:02:38.5]} 17... Rb8 {[%clk 0:02:37.6]} 18. Rfd1
{[%clk 0:02:32.2]} 18... Be5 {[%clk 0:02:34.5]} 19. Re7 {[%clk 0:02:24.3]} 19...
Bf6 {[%clk 0:02:18.9]} 20. Rxe4 {[%clk 0:02:21.7]} 20... Rfd8 {[%clk 0:02:19]}
21. Kf1 {[%clk 0:02:20.5]} 21... Kg8 {[%clk 0:02:17.9]} 22. g3 {[%clk
0:02:15.2]} 22... Kf8 {[%clk 0:02:17.9]} 23. Bf3 {[%clk 0:02:14]} 23... Rxd1+
{[%clk 0:02:17.7]} 24. Bxd1 {[%clk 0:02:14.2]} 24... Rd8 {[%clk 0:02:18.4]} 25.
Ke2 {[%clk 0:02:13.7]} 25... Bc3 {[%clk 0:02:18.3]} 26. Rc4 {[%clk 0:02:09.7]}
26... Rd2+ {[%clk 0:02:17]} 27. Kf3 {[%clk 0:02:09.4]} 27... Be5 {[%clk
0:02:13.6]} 28. Bc2 {[%clk 0:02:07.8]} 28... Ke7 {[%clk 0:02:10.6]} 29. a4
{[%clk 0:02:06.7]} 29... h5 {[%clk 0:02:06.2]} 30. a5 {[%clk 0:02:02.2]} 30...
b5 {[%clk 0:02:03.6]} 31. Rc5 {[%clk 0:01:58.7]} 31... Bd6 {[%clk 0:02:03.6]}
32. Rc8 {[%clk 0:01:57.1]} 32... g5 {[%clk 0:02:01.1]} 33. h3 {[%clk 0:01:55.1]}
33... g4+ {[%clk 0:01:53.2]} 34. hxg4 {[%clk 0:01:54]} 34... hxg4+ {[%clk
0:01:54.1]} 35. Kg2 {[%clk 0:01:49.8]} 35... b4 {[%clk 0:01:40.8]} 36. a6 {[%clk
0:01:46.3]} 36... Rd5 {[%clk 0:01:35.9]} 37. Be4 {[%clk 0:01:43]} 37... Ra5
{[%clk 0:01:35.6]} 38. Bb7 {[%clk 0:01:42.7]} 38... Ra2 {[%clk 0:01:29.9]} 39.
Rc4 {[%clk 0:01:38.8]} 39... f6 {[%clk 0:01:27.4]} 40. Rxg4 {[%clk 0:01:37.2]}
40... Bc5 {[%clk 0:01:22.9]} 41. Kf3 {[%clk 0:01:35.6]} 41... Ra3 {[%clk
0:01:17.9]} 42. Rc4 {[%clk 0:01:29.2]} 42... Kd6 {[%clk 0:01:16.6]} 43. Rf4
{[%clk 0:01:00.3]} 43... Rxb3 {[%clk 0:01:01.3]} 44. Rxf6+ {[%clk 0:00:59.7]}
44... Ke7 {[%clk 0:01:01.6]} 45. Rc6 {[%clk 0:00:57.8]} 45... Rc3 {[%clk
0:00:59.1]} 46. Rc8 {[%clk 0:00:55.3]} 46... b3 {[%clk 0:00:52.6]} 47. Be4
{[%clk 0:00:54.9]} 47... b2 {[%clk 0:00:52.9]} 48. Rb8 {[%clk 0:00:53.4]} 48...
Bb6 {[%clk 0:00:43.8]} 49. g4 {[%clk 0:00:44]} 49... Rc4 {[%clk 0:00:37.7]} 50.
Bf5 {[%clk 0:00:42.7]} 50... Rc5 {[%clk 0:00:35.6]} 51. Be4 {[%clk 0:00:42.6]}
51... Re5 {[%clk 0:00:35.1]} 52. Bd3 {[%clk 0:00:41.7]} 52... Rd5 {[%clk
0:00:34.2]} 53. Bg6 {[%clk 0:00:37.7]} 53... Ra5 {[%clk 0:00:27.9]} 54. Bd3
{[%clk 0:00:32.5]} 54... Ra3 {[%clk 0:00:23.9]} 55. Be4 {[%clk 0:00:31.8]} 55...
Rxa6 {[%clk 0:00:22.7]} 56. g5 {[%clk 0:00:31.5]} 56... Ra1 {[%clk 0:00:22.8]}
57. g6 {[%clk 0:00:28.3]} 57... Rg1 {[%clk 0:00:18.4]} 58. Rb7+ {[%clk
0:00:28.3]} 58... Kf6 {[%clk 0:00:18.4]} 59. Rf7+ {[%clk 0:00:27.8]} 59... Ke6
{[%clk 0:00:18.9]} 60. Rf8 {[%clk 0:00:23.9]} 60... Bc5 {[%clk 0:00:16.4]} 61.
Rc8 {[%clk 0:00:22.9]} 61... Bb6 {[%clk 0:00:15.3]} 62. Rb8 {[%clk 0:00:20.2]}
62... Kf6 {[%clk 0:00:12.7]} 63. Rf8+ {[%clk 0:00:19.7]} 63... Ke7 {[%clk
0:00:13.1]} 64. Rf7+ {[%clk 0:00:19.8]} 64... Ke6 {[%clk 0:00:13.7]} 65. Rf8
{[%clk 0:00:19.6]} 65... a5 {[%clk 0:00:12.7]} 66. Rb8 {[%clk 0:00:19.1]} 66...
Bc5 {[%clk 0:00:04.9]} 67. Rxb2 {[%clk 0:00:18.7]} 67... a4 {[%clk 0:00:05.8]}
68. Rc2 {[%clk 0:00:19]} 68... Bd6 {[%clk 0:00:05.3]} 69. Bd3 {[%clk 0:00:15.4]}
69... a3 {[%clk 0:00:06.2]} 70. Rc8 {[%clk 0:00:14.5]} 70... a2 {[%clk 0:00:05]}
71. Bc4+ {[%clk 0:00:14]} 71... Kd7 {[%clk 0:00:05.6]} 72. Bxa2 {[%clk
0:00:12.1]} 72... Kxc8 {[%clk 0:00:06]} 73. Bf7 {[%clk 0:00:12.2]} 73... Kd7
{[%clk 0:00:06.4]} 74. Ke4 {[%clk 0:00:12.8]} 74... Ke7 {[%clk 0:00:06.9]} 75.
f4 {[%clk 0:00:12.9]} 75... Kf6 {[%clk 0:00:07.1]} 76. Kf3 {[%clk 0:00:12.2]}
76... Bb8 {[%clk 0:00:06.9]} 77. e4 {[%clk 0:00:12.5]} 77... Rf1+ {[%clk
0:00:06.8]} 78. Kg4 {[%clk 0:00:12.9]} 78... Rxf4+ {[%clk 0:00:07.4]} 0-1

[Event "Early-Titled-Tuesday-Blitz-September-26-2023"]
[Site "Chess.com"]
[Date "2023.09.26"]
[Round "6"]
[White "JoliyRoger"]
[Black "levallem"]
[Result "1-0"]
[WhiteElo "2506"]
[BlackElo "2375"]
[TimeControl "180+1"]
[EndTime "9:10:51 PDT"]
[Termination "JoliyRoger won on time"]

1. d4 {[%clk 0:03:00.9]} 1... d5 {[%clk 0:02:58.1]} 2. c4 {[%clk 0:03:00.9]}
2... e6 {[%clk 0:02:57.4]} 3. Nc3 {[%clk 0:03:01.6]} 3... Nf6 {[%clk 0:02:57.8]}
4. Nf3 {[%clk 0:03:01.6]} 4... Be7 {[%clk 0:02:58.4]} 5. Bg5 {[%clk 0:03:01.9]}
5... O-O {[%clk 0:02:59]} 6. e3 {[%clk 0:03:02.5]} 6... h6 {[%clk 0:02:58.4]} 7.
Bh4 {[%clk 0:03:02]} 7... Ne4 {[%clk 0:02:58.7]} 8. Bxe7 {[%clk 0:03:01.4]} 8...
Qxe7 {[%clk 0:02:59.3]} 9. Qc2 {[%clk 0:03:00.8]} 9... Nxc3 {[%clk 0:02:58.9]}
10. bxc3 {[%clk 0:03:01.5]} 10... Nd7 {[%clk 0:02:48]} 11. Be2 {[%clk
0:02:44.2]} 11... dxc4 {[%clk 0:02:39.1]} 12. Bxc4 {[%clk 0:02:44.1]} 12... b6
{[%clk 0:02:37.3]} 13. O-O {[%clk 0:02:41.7]} 13... Bb7 {[%clk 0:02:28.8]} 14.
Qe2 {[%clk 0:02:42.3]} 14... c5 {[%clk 0:02:28.3]} 15. a4 {[%clk 0:02:42.1]}
15... Rac8 {[%clk 0:02:22.9]} 16. Ba6 {[%clk 0:02:38.7]} 16... Nf6 {[%clk
0:02:21.8]} 17. a5 {[%clk 0:02:37.4]} 17... cxd4 {[%clk 0:02:21.8]} 18. cxd4
{[%clk 0:02:37]} 18... bxa5 {[%clk 0:02:20.6]} 19. Rxa5 {[%clk 0:02:31.2]} 19...
Be4 {[%clk 0:02:19.8]} 20. Bd3 {[%clk 0:02:22.4]} 20... Rc7 {[%clk 0:02:08.5]}
21. Bxe4 {[%clk 0:01:59.8]} 21... Nxe4 {[%clk 0:02:05.2]} 22. Qd3 {[%clk
0:02:00.3]} 22... Nf6 {[%clk 0:02:01.7]} 23. Rfa1 {[%clk 0:01:55.1]} 23... Rfc8
{[%clk 0:01:58]} 24. g3 {[%clk 0:01:53.6]} 24... Qb4 {[%clk 0:01:48.1]} 25. Rxa7
{[%clk 0:01:31.4]} 25... g5 {[%clk 0:01:20.9]} 26. h3 {[%clk 0:01:29.1]} 26...
Qb6 {[%clk 0:00:42.3]} 27. Rxc7 {[%clk 0:01:24.2]} 27... Rxc7 {[%clk 0:00:41.5]}
28. Rb1 {[%clk 0:01:22.6]} 28... Qc6 {[%clk 0:00:37.7]} 29. Nd2 {[%clk
0:01:15.7]} 29... Kg7 {[%clk 0:00:33.7]} 30. Nb3 {[%clk 0:00:36.4]} 30... Qc2
{[%clk 0:00:32]} 31. Qxc2 {[%clk 0:00:35.5]} 31... Rxc2 {[%clk 0:00:32.9]} 32.
Rc1 {[%clk 0:00:31.8]} 32... Rb2 {[%clk 0:00:31]} 33. Nc5 {[%clk 0:00:32.3]}
33... Nd5 {[%clk 0:00:26.5]} 34. Nd3 {[%clk 0:00:30.9]} 34... Rb7 {[%clk
0:00:21.4]} 35. Ne5 {[%clk 0:00:30]} 35... f6 {[%clk 0:00:21.2]} 36. Nd3 {[%clk
0:00:29.2]} 36... Kg6 {[%clk 0:00:20.6]} 37. Rc6 {[%clk 0:00:26.9]} 37... Re7
{[%clk 0:00:20.7]} 38. Nc5 {[%clk 0:00:27.3]} 38... e5 {[%clk 0:00:19.5]} 39. e4
{[%clk 0:00:19.3]} 39... Nb4 {[%clk 0:00:16.9]} 40. Rb6 {[%clk 0:00:19.3]} 40...
Nc2 {[%clk 0:00:14.3]} 41. d5 {[%clk 0:00:19.4]} 41... Nd4 {[%clk 0:00:13.9]}
42. Kg2 {[%clk 0:00:17.5]} 42... Rc7 {[%clk 0:00:12.4]} 43. Ne6 {[%clk
0:00:17.1]} 43... Nxe6 {[%clk 0:00:05.6]} 44. Rxe6 {[%clk 0:00:12.4]} 44... Rc4
{[%clk 0:00:05.4]} 45. Kf3 {[%clk 0:00:12.2]} 45... Rc3+ {[%clk 0:00:05.9]} 46.
Ke2 {[%clk 0:00:12.8]} 46... Rc2+ {[%clk 0:00:06]} 47. Ke3 {[%clk 0:00:13.2]}
47... Ra2 {[%clk 0:00:05.1]} 48. Rc6 {[%clk 0:00:12.1]} 48... Ra3+ {[%clk
0:00:05.3]} 49. Ke2 {[%clk 0:00:12.3]} 49... Ra2+ {[%clk 0:00:05.7]} 50. Ke3
{[%clk 0:00:12.7]} 50... Ra3+ {[%clk 0:00:06]} 51. Kd2 {[%clk 0:00:13.1]} 51...
Ra4 {[%clk 0:00:06.5]} 52. Kd3 {[%clk 0:00:12.5]} 52... Rd4+ {[%clk 0:00:06.8]}
53. Ke3 {[%clk 0:00:11.9]} 53... h5 {[%clk 0:00:07.4]} 54. Rc2 {[%clk
0:00:11.1]} 54... g4 {[%clk 0:00:07.8]} 55. hxg4 {[%clk 0:00:10.1]} 55... hxg4
{[%clk 0:00:08.7]} 56. Rd2 {[%clk 0:00:10.9]} 56... Ra4 {[%clk 0:00:09.1]} 57.
d6 {[%clk 0:00:11]} 57... Ra8 {[%clk 0:00:09.2]} 58. d7 {[%clk 0:00:11]} 58...
Rd8 {[%clk 0:00:09.8]} 59. f3 {[%clk 0:00:09.3]} 59... gxf3 {[%clk 0:00:09.4]}
60. Kxf3 {[%clk 0:00:10]} 60... Kf7 {[%clk 0:00:10.3]} 61. Kg4 {[%clk
0:00:10.7]} 61... Ke6 {[%clk 0:00:11]} 62. Kh5 {[%clk 0:00:10.4]} 62... Ke7
{[%clk 0:00:10.7]} 63. Kg6 {[%clk 0:00:10]} 63... Rg8+ {[%clk 0:00:11.1]} 64.
Kh5 {[%clk 0:00:07.8]} 64... Rd8 {[%clk 0:00:08.4]} 65. g4 {[%clk 0:00:07.6]}
65... Rh8+ {[%clk 0:00:07.7]} 66. Kg6 {[%clk 0:00:06.4]} 66... Rg8+ {[%clk
0:00:08]} 67. Kh6 {[%clk 0:00:07.1]} 67... Rd8 {[%clk 0:00:06.9]} 68. Kg7 {[%clk
0:00:07.7]} 68... Ke6 {[%clk 0:00:04.9]} 69. Kg6 {[%clk 0:00:07.5]} 69... Rg8+
{[%clk 0:00:03.6]} 70. Kh7 {[%clk 0:00:08.1]} 70... Rd8 {[%clk 0:00:04.5]} 71.
Kg7 {[%clk 0:00:08.8]} 71... Ke7 {[%clk 0:00:04.5]} 72. Rd5 {[%clk 0:00:09.3]}
72... Ke6 {[%clk 0:00:04]} 73. Kh7 {[%clk 0:00:09.2]} 73... Kf7 {[%clk 0:00:03]}
74. Rd6 {[%clk 0:00:07.6]} 74... Ke7 {[%clk 0:00:02.7]} 75. Rd1 {[%clk
0:00:07.9]} 75... Rxd7 {[%clk 0:00:02.5]} 76. Rxd7+ {[%clk 0:00:07.4]} 76...
Kxd7 {[%clk 0:00:03.4]} 77. Kg7 {[%clk 0:00:07.6]} 77... Ke7 {[%clk 0:00:03.8]}
78. Kg6 {[%clk 0:00:06.7]} 78... Ke6 {[%clk 0:00:03.9]} 79. g5 {[%clk
0:00:05.2]} 79... fxg5 {[%clk 0:00:03.1]} 80. Kxg5 {[%clk 0:00:05.9]} 80... Kd7
{[%clk 0:00:03.5]} 81. Kf6 {[%clk 0:00:06]} 81... Kd8 {[%clk 0:00:04.4]} 82. Kf5
{[%clk 0:00:04.1]} 82... Ke7 {[%clk 0:00:05.3]} 83. Kxe5 {[%clk 0:00:04.8]}
83... Kd7 {[%clk 0:00:05.2]} 84. Kf6 {[%clk 0:00:05.2]} 84... Ke8 {[%clk
0:00:05.6]} 85. e5 {[%clk 0:00:05.1]} 85... Kf8 {[%clk 0:00:06.5]} 86. e6 {[%clk
0:00:05.6]} 86... Ke8 {[%clk 0:00:07.4]} 87. e7 {[%clk 0:00:06.3]} 87... Kd7
{[%clk 0:00:07.6]} 88. Kf7 {[%clk 0:00:07]} 88... Kd6 {[%clk 0:00:08.5]} 89.
e8=Q {[%clk 0:00:07.7]} 89... Kd5 {[%clk 0:00:09.4]} 90. Qe3 {[%clk 0:00:08.5]}
1-0